[Event "Titled Tuesday Blitz December 14 2021"]
[White "Tanenbaum, Zachary"]
[Black "Kashefi, Amir Hosein"]
[WhiteFideId "2060850"]
[BlackFideId "12557935"]
[WhiteElo "2168"]
[BlackElo "2098"]
[Result "1-0"]
[Round "07"]
[TimeControl "180+1"]
[Date "2021.12.15"]
[WhiteClock "0:00:03"]
[BlackClock "0:00:01"]

1. e4 {[%clk 0:03:00]}  c5 {[%clk 0:02:44]} 2. Nf3 {[%clk 0:03:00]}  e6 {[%clk 0:02:42]} 3. d4 {[%clk 0:03:00]}  cxd4 {[%clk 0:02:43]} 4. Nxd4 {[%clk 0:03:00]}  a6 {[%clk 0:02:40]} 5. Bd3 {[%clk 0:03:00]}  Qc7 {[%clk 0:02:37]} 6. O-O {[%clk 0:02:59]}  Nc6 {[%clk 0:02:34]} 7. Be3 {[%clk 0:02:56]}  Nf6 {[%clk 0:02:31]} 8. Nc3 {[%clk 0:02:55]}  b5 {[%clk 0:02:28]} 9. Nxc6 {[%clk 0:02:41]}  dxc6 {[%clk 0:02:25]} 10. f4 {[%clk 0:02:41]}  e5 {[%clk 0:02:19]} 11. fxe5 {[%clk 0:02:27]}  Qxe5 {[%clk 0:02:13]} 12. Kh1 {[%clk 0:02:26]}  Qh5 {[%clk 0:01:37]} 13. Be2 {[%clk 0:01:27]}  Bg4 {[%clk 0:01:36]} 14. Rf5 {[%clk 0:01:20]}  Bxe2 {[%clk 0:01:25]} 15. Nxe2 {[%clk 0:01:20]}  Qg4 {[%clk 0:01:16]} 16. Re5+ {[%clk 0:01:16]}  Be7 {[%clk 0:01:13]} 17. Bc5 {[%clk 0:01:11]}  Ng8 {[%clk 0:01:01]} 18. Bxe7 {[%clk 0:01:09]}  Nxe7 {[%clk 0:00:59]} 19. Qd6 {[%clk 0:01:10]}  O-O {[%clk 0:00:48]} 20. Rxe7 {[%clk 0:00:46]}  Qxe2 {[%clk 0:00:47]} 21. Qxc6 {[%clk 0:00:46]}  Rac8 {[%clk 0:00:48]} 22. Rc7 {[%clk 0:00:32]}  Rxc7 {[%clk 0:00:47]} 23. Qxc7 {[%clk 0:00:33]}  Qxe4 {[%clk 0:00:47]} 24. h3 {[%clk 0:00:30]}  Re8 {[%clk 0:00:42]} 25. Rf1 {[%clk 0:00:30]}  Qe6 {[%clk 0:00:31]} 26. b3 {[%clk 0:00:22]}  h6 {[%clk 0:00:30]} 27. Rd1 {[%clk 0:00:18]}  Re7 {[%clk 0:00:19]} 28. Qd8+ {[%clk 0:00:16]}  Kh7 {[%clk 0:00:18]} 29. Qd3+ {[%clk 0:00:16]}  Qe4 {[%clk 0:00:12]} 30. Qc3 {[%clk 0:00:12]}  Re6 {[%clk 0:00:08]} 31. Rf1 {[%clk 0:00:11]}  Rg6 {[%clk 0:00:08]} 32. Qf3 {[%clk 0:00:09]}  Qxc2 {[%clk 0:00:07]} 33. Rf2 {[%clk 0:00:10]}  Qc1+ {[%clk 0:00:06]} 34. Kh2 {[%clk 0:00:10]}  Qc7+ {[%clk 0:00:06]} 35. Kh1 {[%clk 0:00:10]}  Rf6 {[%clk 0:00:04]} 36. Qe4+ {[%clk 0:00:10]}  Rg6 {[%clk 0:00:03]} 37. Qf5 {[%clk 0:00:08]}  Qc1+ {[%clk 0:00:03]} 38. Kh2 {[%clk 0:00:08]}  Qc7+ {[%clk 0:00:03]} 39. Kg1 {[%clk 0:00:07]}  Kg8 {[%clk 0:00:03]} 40. Qe4 {[%clk 0:00:06]}  Qd7 {[%clk 0:00:01]} 41. Rf3 {[%clk 0:00:05]}  Re6 {[%clk 0:00:01]} 42. Qa8+ {[%clk 0:00:03]}  Re8 {[%clk 0:00:01]} 43. Qxa6 {[%clk 0:00:02]}  b4 {[%clk 0:00:02]} 44. Qc4 {[%clk 0:00:02]}  Qd1+ {[%clk 0:00:02]} 45. Kh2 {[%clk 0:00:02]}  Qd7 {[%clk 0:00:03]} 46. Qxb4 {[%clk 0:00:02]}  Qc7+ {[%clk 0:00:01]} 47. Qf4 {[%clk 0:00:03]} 1-0


[Site "https://www.chess.com"]

[Event "Titled Tuesday Blitz December 14 2021"]
[White "Tari, Aryan"]
[Black "Belyakov, Bogdan"]
[WhiteFideId "1510045"]
[BlackFideId "24104795"]
[WhiteElo "2656"]
[BlackElo "2407"]
[Result "1/2-1/2"]
[Round "07"]
[TimeControl "180+1"]
[Date "2021.12.14"]
[WhiteClock "0:00:04"]
[BlackClock "0:00:19"]

1. e4 {[%clk 0:03:00]}  e5 {[%clk 0:02:59]} 2. Nf3 {[%clk 0:02:57]}  Nc6 {[%clk 0:02:59]} 3. Nc3 {[%clk 0:02:56]}  Nf6 {[%clk 0:02:59]} 4. a3 {[%clk 0:02:56]}  d5 {[%clk 0:02:58]} 5. Bb5 {[%clk 0:02:56]}  d4 {[%clk 0:02:41]} 6. Ne2 {[%clk 0:02:52]}  Nxe4 {[%clk 0:02:37]} 7. d3 {[%clk 0:02:45]}  Nd6 {[%clk 0:02:35]} 8. Bxc6+ {[%clk 0:02:45]}  bxc6 {[%clk 0:02:36]} 9. Nxe5 {[%clk 0:02:45]}  c5 {[%clk 0:02:35]} 10. O-O {[%clk 0:02:44]}  Bb7 {[%clk 0:02:31]} 11. Ng3 {[%clk 0:02:40]}  Be7 {[%clk 0:02:30]} 12. Nh5 {[%clk 0:02:33]}  g6 {[%clk 0:02:20]} 13. Ng7+ {[%clk 0:01:37]}  Kf8 {[%clk 0:02:20]} 14. Bh6 {[%clk 0:01:38]}  Kg8 {[%clk 0:02:20]} 15. Nh5 {[%clk 0:01:33]}  Bg5 {[%clk 0:02:13]} 16. Bg7 {[%clk 0:00:50]}  gxh5 {[%clk 0:02:13]} 17. Bxh8 {[%clk 0:00:51]}  Kxh8 {[%clk 0:02:14]} 18. Qxh5 {[%clk 0:00:51]}  Qf6 {[%clk 0:02:10]} 19. Rae1 {[%clk 0:00:44]}  Rg8 {[%clk 0:02:09]} 20. Ng4 {[%clk 0:00:38]}  Qf4 {[%clk 0:01:58]} 21. f3 {[%clk 0:00:25]}  f5 {[%clk 0:01:50]} 22. Ne5 {[%clk 0:00:10]}  Bf6 {[%clk 0:01:22]} 23. Nf7+ {[%clk 0:00:05]}  Nxf7 {[%clk 0:01:22]} 24. Qxf7 {[%clk 0:00:06]}  Bh4 {[%clk 0:01:21]} 25. Re2 {[%clk 0:00:03]}  Bc6 {[%clk 0:00:47]} 26. Kh1 {[%clk 0:00:04]}  Qh6 {[%clk 0:00:38]} 27. Re6 {[%clk 0:00:03]}  Qd2 {[%clk 0:00:34]} 28. Rg1 {[%clk 0:00:01]}  Bd5 {[%clk 0:00:23]} 29. Qxf5 {[%clk 0:00:01]}  Bxe6 {[%clk 0:00:22]} 30. Qe5+ {[%clk 0:00:01]}  Rg7 {[%clk 0:00:21]} 31. Qxe6 {[%clk 0:00:02]}  Bf2 {[%clk 0:00:17]} 32. Qe8+ {[%clk 0:00:02]}  Rg8 {[%clk 0:00:18]} 33. Qe5+ {[%clk 0:00:03]}  Rg7 {[%clk 0:00:18]} 34. Qe8+ {[%clk 0:00:03]}  Rg8 {[%clk 0:00:19]} 35. Qe5+ {[%clk 0:00:04]}  Rg7 {[%clk 0:00:19]} 36. Qe8+ {[%clk 0:00:04]} 1/2-1/2


[Site "https://www.chess.com"]

[Event "Titled Tuesday Blitz December 14 2021"]
[White "Weetik, Vjacheslav"]
[Black "Lazavik, Denis"]
[WhiteFideId "4153472"]
[BlackFideId "13515110"]
[WhiteElo "2469"]
[BlackElo "2436"]
[Result "1/2-1/2"]
[Round "07"]
[TimeControl "180+1"]
[Date "2021.12.14"]
[WhiteClock "0:00:12"]
[BlackClock "0:00:07"]

1. e4 {[%clk 0:02:59]}  e5 {[%clk 0:02:59]} 2. Nf3 {[%clk 0:02:59]}  Nc6 {[%clk 0:02:59]} 3. Nc3 {[%clk 0:02:59]}  Nf6 {[%clk 0:03:00]} 4. Bb5 {[%clk 0:02:59]}  Nd4 {[%clk 0:03:00]} 5. Bc4 {[%clk 0:02:59]}  Bc5 {[%clk 0:02:57]} 6. Nxe5 {[%clk 0:02:58]}  Qe7 {[%clk 0:02:57]} 7. Nf3 {[%clk 0:02:58]}  d5 {[%clk 0:02:45]} 8. Bxd5 {[%clk 0:02:58]}  Bg4 {[%clk 0:02:44]} 9. d3 {[%clk 0:02:55]}  O-O-O {[%clk 0:02:44]} 10. Be3 {[%clk 0:02:55]}  Rhe8 {[%clk 0:02:04]} 11. Bb3 {[%clk 0:02:12]}  Bxf3 {[%clk 0:00:50]} 12. gxf3 {[%clk 0:02:12]}  Nh5 {[%clk 0:00:50]} 13. Kd2 {[%clk 0:01:21]}  f5 {[%clk 0:00:34]} 14. Kc1 {[%clk 0:01:20]}  Qh4 {[%clk 0:00:28]} 15. Bf7 {[%clk 0:00:49]}  Rf8 {[%clk 0:00:27]} 16. Bxh5 {[%clk 0:00:47]}  Qxh5 {[%clk 0:00:28]} 17. f4 {[%clk 0:00:44]}  Qh4 {[%clk 0:00:28]} 18. Kb1 {[%clk 0:00:38]}  Ne6 {[%clk 0:00:26]} 19. Qf3 {[%clk 0:00:32]}  Bd6 {[%clk 0:00:20]} 20. e5 {[%clk 0:00:31]}  Be7 {[%clk 0:00:19]} 21. a3 {[%clk 0:00:25]}  Kb8 {[%clk 0:00:17]} 22. Ka2 {[%clk 0:00:25]}  h6 {[%clk 0:00:17]} 23. Nd5 {[%clk 0:00:24]}  Bc5 {[%clk 0:00:14]} 24. c3 {[%clk 0:00:21]}  c6 {[%clk 0:00:12]} 25. Nb4 {[%clk 0:00:22]}  g5 {[%clk 0:00:08]} 26. d4 {[%clk 0:00:22]}  Be7 {[%clk 0:00:08]} 27. fxg5 {[%clk 0:00:19]}  hxg5 {[%clk 0:00:08]} 28. Rad1 {[%clk 0:00:16]}  Qh6 {[%clk 0:00:05]} 29. d5 {[%clk 0:00:15]}  cxd5 {[%clk 0:00:05]} 30. Rxd5 {[%clk 0:00:14]}  Nc7 {[%clk 0:00:04]} 31. Ra5 {[%clk 0:00:11]}  Qe6+ {[%clk 0:00:03]} 32. Ka1 {[%clk 0:00:11]}  a6 {[%clk 0:00:04]} 33. Rc1 {[%clk 0:00:04]}  f4 {[%clk 0:00:04]} 34. Bc5 {[%clk 0:00:03]}  g4 {[%clk 0:00:03]} 35. Qe4 {[%clk 0:00:03]}  Bxc5 {[%clk 0:00:03]} 36. Rxc5 {[%clk 0:00:03]}  Nb5 {[%clk 0:00:02]} 37. Rd5 {[%clk 0:00:02]}  Nc7 {[%clk 0:00:02]} 38. Rxd8+ {[%clk 0:00:02]}  Rxd8 {[%clk 0:00:03]} 39. Qxf4 {[%clk 0:00:03]}  a5 {[%clk 0:00:03]} 40. Nc2 {[%clk 0:00:03]}  Nb5 {[%clk 0:00:03]} 41. Nd4 {[%clk 0:00:03]}  Qc4 {[%clk 0:00:02]} 42. e6+ {[%clk 0:00:02]}  Ka8 {[%clk 0:00:02]} 43. e7 {[%clk 0:00:02]}  Re8 {[%clk 0:00:02]} 44. Qe5 {[%clk 0:00:03]}  Nxd4 {[%clk 0:00:01]} 45. Qxa5+ {[%clk 0:00:02]}  Kb8 {[%clk 0:00:01]} 46. Qe5+ {[%clk 0:00:02]}  Ka8 {[%clk 0:00:01]} 47. Qxd4 {[%clk 0:00:03]}  Qxd4 {[%clk 0:00:02]} 48. cxd4 {[%clk 0:00:04]}  Rxe7 {[%clk 0:00:03]} 49. Rc8+ {[%clk 0:00:04]}  Ka7 {[%clk 0:00:03]} 50. Rg8 {[%clk 0:00:05]}  Re4 {[%clk 0:00:03]} 51. d5 {[%clk 0:00:05]}  Kb6 {[%clk 0:00:04]} 52. Rg6+ {[%clk 0:00:04]}  Kc5 {[%clk 0:00:04]} 53. d6 {[%clk 0:00:05]}  Kc6 {[%clk 0:00:04]} 54. Ka2 {[%clk 0:00:05]}  Rf4 {[%clk 0:00:03]} 55. a4 {[%clk 0:00:04]}  Rxa4+ {[%clk 0:00:03]} 56. Kb3 {[%clk 0:00:04]}  Rf4 {[%clk 0:00:04]} 57. Kc3 {[%clk 0:00:03]}  Rxf2 {[%clk 0:00:04]} 58. Rxg4 {[%clk 0:00:03]}  Rxh2 {[%clk 0:00:04]} 59. Rg6 {[%clk 0:00:04]}  Rh5 {[%clk 0:00:03]} 60. b4 {[%clk 0:00:02]}  Rd5 {[%clk 0:00:03]} 61. Kc4 {[%clk 0:00:02]}  Rxd6 {[%clk 0:00:03]} 62. Rxd6+ {[%clk 0:00:02]}  Kxd6 {[%clk 0:00:03]} 63. Kb5 {[%clk 0:00:03]}  Kc7 {[%clk 0:00:03]} 64. Kc5 {[%clk 0:00:04]}  b6+ {[%clk 0:00:04]} 65. Kd5 {[%clk 0:00:04]}  b5 {[%clk 0:00:03]} 66. Kc5 {[%clk 0:00:04]}  Kb8 {[%clk 0:00:02]} 67. Kb6 {[%clk 0:00:04]}  Kc8 {[%clk 0:00:02]} 68. Ka6 {[%clk 0:00:04]}  Kb8 {[%clk 0:00:02]} 69. Kxb5 {[%clk 0:00:05]}  Kb7 {[%clk 0:00:03]} 70. Kc5 {[%clk 0:00:06]}  Kc7 {[%clk 0:00:03]} 71. b5 {[%clk 0:00:06]}  Kb7 {[%clk 0:00:04]} 72. Kc4 {[%clk 0:00:06]}  Kc7 {[%clk 0:00:04]} 73. Kb4 {[%clk 0:00:07]}  Kb7 {[%clk 0:00:05]} 74. Kc5 {[%clk 0:00:08]}  Kc7 {[%clk 0:00:04]} 75. b6+ {[%clk 0:00:08]}  Kb7 {[%clk 0:00:05]} 76. Kb5 {[%clk 0:00:09]}  Kb8 {[%clk 0:00:05]} 77. Kc6 {[%clk 0:00:10]}  Kc8 {[%clk 0:00:05]} 78. Kc5 {[%clk 0:00:10]}  Kb7 {[%clk 0:00:05]} 79. Kb5 {[%clk 0:00:11]}  Kb8 {[%clk 0:00:06]} 80. Ka6 {[%clk 0:00:11]}  Ka8 {[%clk 0:00:07]} 81. b7+ {[%clk 0:00:11]}  Kb8 {[%clk 0:00:07]} 82. Kb6 {[%clk 0:00:12]} 1/2-1/2


[Site "https://www.chess.com"]

[Event "Titled Tuesday Blitz December 14 2021"]
[White "Zubov, Alexander"]
[Black "Saydaliev, Saidakbar"]
[WhiteFideId "14109409"]
[BlackFideId "14203693"]
[WhiteElo "2685"]
[BlackElo "2279"]
[Result "1-0"]
[Round "07"]
[TimeControl "180+1"]
[Date "2021.12.14"]
[WhiteClock "0:00:12"]
[BlackClock "0:00:02"]

1. e4 {[%clk 0:03:00]}  c5 {[%clk 0:02:59]} 2. Nf3 {[%clk 0:03:00]}  d6 {[%clk 0:02:59]} 3. d4 {[%clk 0:02:56]}  cxd4 {[%clk 0:03:00]} 4. Nxd4 {[%clk 0:02:57]}  Nf6 {[%clk 0:03:00]} 5. Nc3 {[%clk 0:02:57]}  a6 {[%clk 0:03:01]} 6. Be3 {[%clk 0:02:57]}  e5 {[%clk 0:03:00]} 7. Nf3 {[%clk 0:02:57]}  Be7 {[%clk 0:02:59]} 8. Bc4 {[%clk 0:02:56]}  Be6 {[%clk 0:03:00]} 9. Bb3 {[%clk 0:02:55]}  O-O {[%clk 0:02:54]} 10. O-O {[%clk 0:02:54]}  Nc6 {[%clk 0:02:36]} 11. Bg5 {[%clk 0:02:51]}  Rc8 {[%clk 0:02:29]} 12. Bxf6 {[%clk 0:02:48]}  Bxf6 {[%clk 0:02:29]} 13. Nd5 {[%clk 0:02:49]}  Na5 {[%clk 0:02:25]} 14. c3 {[%clk 0:02:31]}  Be7 {[%clk 0:02:16]} 15. Qd3 {[%clk 0:02:19]}  b5 {[%clk 0:01:58]} 16. Rfd1 {[%clk 0:02:06]}  Bxd5 {[%clk 0:01:50]} 17. Bxd5 {[%clk 0:02:03]}  Qc7 {[%clk 0:01:47]} 18. a4 {[%clk 0:01:59]}  Nc4 {[%clk 0:01:37]} 19. Qe2 {[%clk 0:01:57]}  Rb8 {[%clk 0:01:21]} 20. axb5 {[%clk 0:01:50]}  axb5 {[%clk 0:01:21]} 21. h4 {[%clk 0:01:45]}  h5 {[%clk 0:01:11]} 22. Ra6 {[%clk 0:01:24]}  Rfc8 {[%clk 0:00:47]} 23. Rda1 {[%clk 0:01:18]}  Qd8 {[%clk 0:00:46]} 24. Ra7 {[%clk 0:00:56]}  Rc7 {[%clk 0:00:43]} 25. Ra8 {[%clk 0:00:52]}  Rxa8 {[%clk 0:00:39]} 26. Rxa8 {[%clk 0:00:50]}  Rc8 {[%clk 0:00:39]} 27. Ra6 {[%clk 0:00:43]}  g6 {[%clk 0:00:17]} 28. g3 {[%clk 0:00:39]}  Kg7 {[%clk 0:00:17]} 29. Kg2 {[%clk 0:00:37]}  Qd7 {[%clk 0:00:15]} 30. b3 {[%clk 0:00:33]}  Na3 {[%clk 0:00:06]} 31. Rxa3 {[%clk 0:00:31]}  Rxc3 {[%clk 0:00:06]} 32. Ra8 {[%clk 0:00:22]}  Bd8 {[%clk 0:00:04]} 33. Qd2 {[%clk 0:00:19]}  b4 {[%clk 0:00:04]} 34. Ng5 {[%clk 0:00:18]}  Bxg5 {[%clk 0:00:02]} 35. Qxg5 {[%clk 0:00:14]}  Rc8 {[%clk 0:00:01]} 36. Rxc8 {[%clk 0:00:13]}  Qxc8 {[%clk 0:00:02]} 37. Qe7 {[%clk 0:00:12]} 1-0


[Site "https://www.chess.com"]

[Event "Titled Tuesday Blitz December 14 2021"]
[White "Artemiev, Vladislav"]
[Black "Shubin, Kirill"]
[WhiteFideId "24101605"]
[BlackFideId "34119962"]
[WhiteElo "2830"]
[BlackElo "2501"]
[Result "1-0"]
[Round "08"]
[TimeControl "180+1"]
[Date "2021.12.14"]
[WhiteClock "0:00:45"]
[BlackClock "0:00:28"]

1. Nf3 {[%clk 0:02:59]}  Nf6 {[%clk 0:02:59]} 2. g3 {[%clk 0:02:59]}  b5 {[%clk 0:02:59]} 3. Bg2 {[%clk 0:02:58]}  Bb7 {[%clk 0:02:59]} 4. O-O {[%clk 0:02:58]}  e6 {[%clk 0:02:59]} 5. b3 {[%clk 0:02:57]}  c5 {[%clk 0:02:59]} 6. c4 {[%clk 0:02:56]}  bxc4 {[%clk 0:02:56]} 7. bxc4 {[%clk 0:02:56]}  Be7 {[%clk 0:02:56]} 8. Nc3 {[%clk 0:02:56]}  O-O {[%clk 0:02:54]} 9. Rb1 {[%clk 0:02:55]}  Bc6 {[%clk 0:02:53]} 10. d3 {[%clk 0:02:45]}  d6 {[%clk 0:02:52]} 11. Nd2 {[%clk 0:02:01]}  Bxg2 {[%clk 0:02:53]} 12. Kxg2 {[%clk 0:02:01]}  Nc6 {[%clk 0:02:46]} 13. Qa4 {[%clk 0:01:59]}  Qd7 {[%clk 0:02:45]} 14. Nf3 {[%clk 0:01:56]}  h6 {[%clk 0:02:37]} 15. Bd2 {[%clk 0:01:55]}  Rfb8 {[%clk 0:02:31]} 16. Rb3 {[%clk 0:01:49]}  d5 {[%clk 0:02:13]} 17. Rfb1 {[%clk 0:01:15]}  d4 {[%clk 0:02:07]} 18. Ne5 {[%clk 0:01:01]}  Nxe5 {[%clk 0:01:37]} 19. Rxb8+ {[%clk 0:00:58]}  Rxb8 {[%clk 0:01:36]} 20. Rxb8+ {[%clk 0:00:57]}  Kh7 {[%clk 0:01:36]} 21. Qxd7 {[%clk 0:00:54]}  Nexd7 {[%clk 0:01:27]} 22. Rb7 {[%clk 0:00:54]}  dxc3 {[%clk 0:01:22]} 23. Bxc3 {[%clk 0:00:54]}  Bd8 {[%clk 0:01:13]} 24. Rxa7 {[%clk 0:00:49]}  Kg6 {[%clk 0:01:10]} 25. a4 {[%clk 0:00:49]}  e5 {[%clk 0:01:04]} 26. a5 {[%clk 0:00:48]}  Kf5 {[%clk 0:00:34]} 27. a6 {[%clk 0:00:46]}  Nb8 {[%clk 0:00:31]} 28. Ra8 {[%clk 0:00:46]}  Nc6 {[%clk 0:00:28]} 29. Rxd8 {[%clk 0:00:45]} 1-0


[Site "https://www.chess.com"]

[Event "Titled Tuesday Blitz December 14 2021"]
[White "Bortnyk, Olexandr"]
[Black "Xiong, Jeffery"]
[WhiteFideId "14120828"]
[BlackFideId "2047640"]
[WhiteElo "2723"]
[BlackElo "2727"]
[Result "0-1"]
[Round "08"]
[TimeControl "180+1"]
[Date "2021.12.14"]
[WhiteClock "0:00:02"]
[BlackClock "0:00:34"]

1. e4 {[%clk 0:02:59]}  c5 {[%clk 0:02:58]} 2. c3 {[%clk 0:02:58]}  e6 {[%clk 0:02:58]} 3. d4 {[%clk 0:02:56]}  cxd4 {[%clk 0:02:59]} 4. cxd4 {[%clk 0:02:54]}  d5 {[%clk 0:02:59]} 5. Nc3 {[%clk 0:02:50]}  Nc6 {[%clk 0:02:53]} 6. e5 {[%clk 0:02:49]}  Nge7 {[%clk 0:02:53]} 7. Nf3 {[%clk 0:02:49]}  Nf5 {[%clk 0:02:53]} 8. a3 {[%clk 0:02:36]}  Bd7 {[%clk 0:02:45]} 9. b4 {[%clk 0:02:28]}  Be7 {[%clk 0:02:45]} 10. b5 {[%clk 0:02:12]}  Na5 {[%clk 0:02:45]} 11. Bd3 {[%clk 0:02:13]}  Rc8 {[%clk 0:02:44]} 12. Bd2 {[%clk 0:02:08]}  Nh4 {[%clk 0:02:39]} 13. Nxh4 {[%clk 0:02:05]}  Bxh4 {[%clk 0:02:40]} 14. O-O {[%clk 0:01:57]}  Nc4 {[%clk 0:02:40]} 15. Bxc4 {[%clk 0:01:50]}  Rxc4 {[%clk 0:02:41]} 16. Qg4 {[%clk 0:01:50]}  Kf8 {[%clk 0:02:33]} 17. Rac1 {[%clk 0:01:42]}  h5 {[%clk 0:02:33]} 18. Qf4 {[%clk 0:01:41]}  Be7 {[%clk 0:02:33]} 19. a4 {[%clk 0:01:28]}  h4 {[%clk 0:02:18]} 20. h3 {[%clk 0:01:26]}  Rh5 {[%clk 0:02:19]} 21. Qg4 {[%clk 0:01:23]}  Rxe5 {[%clk 0:02:16]} 22. dxe5 {[%clk 0:01:06]}  Rxg4 {[%clk 0:02:17]} 23. hxg4 {[%clk 0:01:07]}  f6 {[%clk 0:01:45]} 24. exf6 {[%clk 0:01:05]}  Bxf6 {[%clk 0:01:46]} 25. Ne2 {[%clk 0:01:03]}  e5 {[%clk 0:01:45]} 26. g5 {[%clk 0:00:52]}  Bxg5 {[%clk 0:01:29]} 27. f4 {[%clk 0:00:53]}  exf4 {[%clk 0:01:29]} 28. Nxf4 {[%clk 0:00:42]}  Kg8 {[%clk 0:01:29]} 29. Rce1 {[%clk 0:00:40]}  h3 {[%clk 0:01:17]} 30. gxh3 {[%clk 0:00:38]}  Bxh3 {[%clk 0:01:08]} 31. Rf3 {[%clk 0:00:19]}  Bf5 {[%clk 0:01:07]} 32. Re5 {[%clk 0:00:14]}  Be4 {[%clk 0:01:00]} 33. Rg3 {[%clk 0:00:05]}  Bf6 {[%clk 0:01:00]} 34. Re6 {[%clk 0:00:04]}  Bd4+ {[%clk 0:00:58]} 35. Kf1 {[%clk 0:00:02]}  Qh4 {[%clk 0:00:49]} 36. Re8+ {[%clk 0:00:01]}  Kf7 {[%clk 0:00:49]} 37. Rxe4 {[%clk 0:00:01]}  dxe4 {[%clk 0:00:45]} 38. Ne2 {[%clk 0:00:01]}  Qh1+ {[%clk 0:00:44]} 39. Ng1 {[%clk 0:00:02]}  Bxg1 {[%clk 0:00:36]} 40. Rxg1 {[%clk 0:00:03]}  Qf3+ {[%clk 0:00:36]} 41. Ke1 {[%clk 0:00:03]}  e3 {[%clk 0:00:34]} 42. Bxe3 {[%clk 0:00:01]}  Qxe3+ {[%clk 0:00:35]} 43. Kf1 {[%clk 0:00:02]}  Qc1+ {[%clk 0:00:34]} 0-1


[Site "https://www.chess.com"]

[Event "Titled Tuesday Blitz December 14 2021"]
[White "Durarbayli, Vasif"]
[Black "Sviridov, Valery"]
[WhiteFideId "13402935"]
[BlackFideId "4120680"]
[WhiteElo "2599"]
[BlackElo "2454"]
[Result "0-1"]
[Round "08"]
[TimeControl "180+1"]
[Date "2021.12.14"]
[WhiteClock "0:00:02"]
[BlackClock "0:00:47"]

1. e4 {[%clk 0:03:00]}  e5 {[%clk 0:02:58]} 2. Nf3 {[%clk 0:02:59]}  Nc6 {[%clk 0:02:58]} 3. Bb5 {[%clk 0:02:59]}  Nge7 {[%clk 0:02:58]} 4. d4 {[%clk 0:02:46]}  exd4 {[%clk 0:02:59]} 5. Nxd4 {[%clk 0:02:46]}  g6 {[%clk 0:02:59]} 6. Nxc6 {[%clk 0:02:35]}  Nxc6 {[%clk 0:02:58]} 7. Bxc6 {[%clk 0:02:29]}  bxc6 {[%clk 0:02:55]} 8. Qd4 {[%clk 0:02:27]}  f6 {[%clk 0:02:56]} 9. Nc3 {[%clk 0:02:21]}  Bg7 {[%clk 0:02:56]} 10. Be3 {[%clk 0:02:18]}  O-O {[%clk 0:02:55]} 11. O-O-O {[%clk 0:02:16]}  Qe7 {[%clk 0:02:50]} 12. h4 {[%clk 0:02:07]}  f5 {[%clk 0:02:34]} 13. Qc4+ {[%clk 0:02:06]}  Qf7 {[%clk 0:02:35]} 14. Qxf7+ {[%clk 0:01:48]}  Rxf7 {[%clk 0:02:36]} 15. Bd4 {[%clk 0:01:45]}  fxe4 {[%clk 0:02:34]} 16. Nxe4 {[%clk 0:01:34]}  Bxd4 {[%clk 0:02:33]} 17. Rxd4 {[%clk 0:01:35]}  d5 {[%clk 0:02:33]} 18. Nc5 {[%clk 0:01:29]}  Rxf2 {[%clk 0:02:33]} 19. g4 {[%clk 0:01:29]}  Rg2 {[%clk 0:02:23]} 20. g5 {[%clk 0:01:13]}  Bf5 {[%clk 0:02:22]} 21. Rd2 {[%clk 0:01:14]}  Rg4 {[%clk 0:02:22]} 22. Re2 {[%clk 0:01:09]}  Kf7 {[%clk 0:02:15]} 23. Rhe1 {[%clk 0:01:01]}  Rxh4 {[%clk 0:02:00]} 24. Re7+ {[%clk 0:01:01]}  Kg8 {[%clk 0:02:00]} 25. Rxc7 {[%clk 0:01:00]}  Rf8 {[%clk 0:01:50]} 26. Ree7 {[%clk 0:00:35]}  Rh2 {[%clk 0:01:50]} 27. b4 {[%clk 0:00:19]}  Rxc2+ {[%clk 0:01:48]} 28. Kd1 {[%clk 0:00:17]}  Rh2 {[%clk 0:01:49]} 29. Rxa7 {[%clk 0:00:10]}  d4 {[%clk 0:01:42]} 30. Ke1 {[%clk 0:00:08]}  d3 {[%clk 0:01:42]} 31. Nb3 {[%clk 0:00:06]}  Bg4 {[%clk 0:01:30]} 32. Rg7+ {[%clk 0:00:06]}  Kh8 {[%clk 0:01:30]} 33. Rgf7 {[%clk 0:00:04]}  Re8+ {[%clk 0:01:26]} 34. Kf1 {[%clk 0:00:04]}  Bf5 {[%clk 0:01:15]} 35. Kg1 {[%clk 0:00:03]}  Rh5 {[%clk 0:01:15]} 36. Kf2 {[%clk 0:00:04]}  Rh2+ {[%clk 0:01:04]} 37. Kg3 {[%clk 0:00:04]}  Rh3+ {[%clk 0:01:04]} 38. Kg2 {[%clk 0:00:04]}  Rh4 {[%clk 0:00:53]} 39. b5 {[%clk 0:00:01]}  cxb5 {[%clk 0:00:52]} 40. Kg3 {[%clk 0:00:02]}  Rh3+ {[%clk 0:00:52]} 41. Kf2 {[%clk 0:00:02]}  b4 {[%clk 0:00:52]} 42. Nd4 {[%clk 0:00:02]}  d2 {[%clk 0:00:47]} 0-1


[Site "https://www.chess.com"]